Cogmind - Beta 13 @@@ ROGUE MODE // 2024.04.19 @ 11:35:19 Player: SovietPaperclip Result: Destroyed by U6-ZYV(R) with Subdweller Laser Performance ------------- Evolutions (0) 0 Regions Visited (2) 400 Robots Destroyed (29) 145 Value Destroyed (851) 851 Prototype IDs (0) 0 Alien Tech Used (0) 0 Bonus (0) 0 TOTAL SCORE: 1396 Bonus ------- None Cogmind --------- Core Integrity 0/250 Matter 9/300 Energy 100/100 System Corruption 1% Temperature Cool (6) Movement Treading (320) Ox2 Location -10/Subcaves Parts ------- > --- POWER (1) -------- (None) > --- PROPULSION (2) --- Light Treads > --- UTILITY (2) ------ High-capacity Storage Unit > --- WEAPON (2) ------- Subdweller Machine Gun Slug Cannon > --- INVENTORY (20) --- Light Treads Spiked Treads Subdweller Monowheel Subdweller Monowheel Subdweller Monowheel Improved Heat Sink Humpback High-capacity Matter Pod (200) Makeshift Kinetic Plating Makeshift System Shield Tractor Beam Rainbow Chip Beam Cannon Assault Rifle Battle Rifle Subdweller Machine Gun Multitool Peak State ------------ > --- POWER ------------ Subdweller Power Source > --- PROPULSION ------- Light Treads Spiked Treads > --- UTILITY ---------- High-capacity Storage Unit Core Shielding > --- WEAPON ----------- Battle Rifle Subdweller Machine Gun > --- INVENTORY -------- Light Treads Spiked Treads Subdweller Monowheel Subdweller Monowheel Subdweller Monowheel Improved Heat Sink Humpback High-capacity Matter Pod Makeshift System Shield Tractor Beam Rainbow Chip Beam Cannon Assault Rifle Subdweller Machine Gun Slug Cannon Multitool [Rating: 15] Favorites ----------- Power Ion Engine Engine Ion Engine Propulsion Light Treads Treads Light Treads Utility High-capacity Storage Unit Storage High-capacity Storage Unit Protection Core Shielding Weapon Subdweller Machine Gun Ballistic Gun Subdweller Machine Gun Ballistic Cannon Slug Cannon Build | -11 -10 -10 ------- Run | Yrd Mat Sub Slots Evolved . | . . . Power . | . . . Propulsion . | . . . Utility . | . . . Weapon . | . . . Parts Attached 21 | 6 2 13 Power 4 | 1 . 3 Engine 4 | 1 . 3 Core . | . . . Reactor . | . . . Propulsion 6 | 2 . 4 Treads 6 | 2 . 4 Leg . | . . . Wheel . | . . . Hover . | . . . Flight . | . . . Utility 3 | 1 2 . Device . | . . . Storage 2 | 1 1 . Processor . | . . . Hackware . | . . . Protection 1 | . 1 . Artifact . | . . . Weapon 8 | 2 . 6 Energy Gun . | . . . Energy Cannon . | . . . Ballistic Gun 7 | 2 . 5 Ballistic Cannon 1 | . . 1 Launcher . | . . . Special Weapon . | . . . Impact Weapon . | . . . Slashing Weapon . | . . . Piercing Weapon . | . . . Special Melee Weapon . | . . . Unidentified Prototypes . | . . . Parts Lost 10 | . . 10 Power 2 | . . 2 Propulsion 4 | . . 4 Utility 1 | . . 1 Weapon 3 | . . 3 Highest Loss Streak 3 | . . 3 To Critical Strikes . | . . . Average Slot Usage (%) 93 | . 95 92 Engine 8 | . 14 7 Treads 27 | . 28 27 Storage 14 | . 14 14 Protection 13 | . 9 13 Ballistic Gun 26 | . 28 26 Ballistic Cannon 1 | . . 1 Naked Turns . | . . . Heaviest Build 52 | 14 50 52 Greatest Support 40 | 40 40 40 Greatest Overweight (x) 2 | . 1 2 Average Overweight (x) . | . . 1 Largest Inventory Capacity 20 | 8 20 20 Average Capacity 19 | 7 19 20 Most Carried 20 | 1 7 20 Average Carried 14 | . 4 15 Final Capacity 20 | 8 20 20 Final Carried 18 | 1 7 18 Class Distribution -------------------- 100% | Mutant Dominant Class ---------------- Mutant | -10/Materials Mutant | -10/Subcaves Resources | -11 -10 -10 ----------- Run | Yrd Mat Sub Matter Collected 1262 | 217 247 798 Remotely . | . . . Salvage Created 832 | . 194 638 Parts 61 | . 15 46 Haulers Intercepted . | . . . Recyclers Shooed . | . . . Parts Field Recycled . | . . . Retrieved Matter . | . . . Parts Self-Destructed 23 | . . 23 Prevented . | . . . Kills | -11 -10 -10 ------- Run | Yrd Mat Sub Combat Hostiles Destroyed 28 | . 7 21 Guns 28 | . 7 21 Classes Destroyed 5 | . 3 2 Worker 1 | . 1 . Swarmer 9 | . 4 5 Grunt 3 | . 3 . Sentry 1 | . . 1 Subdweller 15 | . . 15 Best Kill Streak 4 | . 3 4 Combat Bots Only 4 | . 3 4 Max Kills in Single Turn 2 | . 1 2 Gunslinging 1 | . . 1 Exploded . | . . . Melee . | . . . Uniques/NPCs Destroyed . | . . . Combat | -11 -10 -10 -------- Run | Yrd Mat Sub Hostile Shots Fired 155 | . 30 125 Missed 53 | . 11 42 Damage Taken 1858 | . 186 1672 Core 263 | . 8 255 Absorbed by Shields . | . . . Redirected to Shielding 50 | . . 50 Core Remaining (%) 100 | 100 . . Volleys Fired 153 | . 21 132 Largest 2 | . 2 2 Hottest 78 | . 40 78 Shots Fired 281 | . 41 240 Gun 252 | . 41 211 Cannon 29 | . . 29 Launcher . | . . . Special . | . . . Kinetic 281 | . 41 240 Thermal . | . . . Explosive . | . . . Electromagnetic . | . . . Robot Hit Streak 11 | . 8 11 Robot Miss Streak 5 | . 3 5 Penetration Max . | . . . Secondary Targets 3 | . 1 2 Max Gunslinging Chain 1 | . 1 1 Shots Hit Robots 118 | . 27 91 Core Hits 50 | . 13 37 Critical Kills 1 | . . 1 Critical Parts Destroyed . | . . . Critical Strikes 2 | . . 2 Destroy 2 | . . 2 Melee Attacks . | . . . Impact . | . . . Slashing . | . . . Piercing . | . . . Sneak Attacks . | . . . Combat Hostiles . | . . . Follow-up Attacks . | . . . Damage Inflicted 1853 | . 329 1524 Guns 1815 | . 329 1486 Cannons 38 | . . 38 Explosions . | . . . Melee . | . . . Ramming . | . . . Kinetic 1853 | . 329 1524 Thermal . | . . . Explosive . | . . . Electromagnetic . | . . . Impact . | . . . Slashing . | . . . Piercing . | . . . Highest Corruption 1 | . 1 1 Average Corruption 1 | . 1 1 Corruption Purged . | . . . Corruption Blocked . | . . . Effects 51 | . 7 44 Message Errors 12 | . 1 11 Matter Fused 13 | . . 13 Heat Flow Errors 7 | . 1 6 Energy Discharges 3 | . 2 1 Parts Fused 1 | . . 1 Data Loss (minor) 4 | . 1 3 Data Loss (major) 6 | . 1 5 Misfires 3 | . . 3 Weapon Failures 2 | . 1 1 Overload Shots . | . . . Overflow Damage . | . . . Projectiles . | . . . Explosions . | . . . Melee . | . . . Knockbacks 2 | . . 2 Impact . | . . . Kinetic 1 | . . 1 Secondary 1 | . . 1 Self-Inflicted Damage . | . . . Shots . | . . . Rammed . | . . . Targets Rammed . | . . . Kicked . | . . . Crushed . | . . . Highest Temperature 254 | . 141 254 Average Temperature 92 | . 59 105 Received Heat Transfer 366 | . 42 324 Siege Activations . | . . . Robots Corrupted . | . . . Combat Hostiles . | . . . Parts Fried . | . . . Impact Corruptions . | . . . Robots Melted . | . . . Combat Hostiles . | . . . Parts Melted 3 | . . 3 Heat Transferred . | . . . Parts Sabotaged . | . . . Parts Stolen . | . . . Parts Stripped . | . . . Power Chain Reactions . | . . . Alert | -11 -10 -10 ------- Run | Yrd Mat Sub Peak Influence 113 | . 113 . Initial . | . . . Average 30 | . 33 . Maximum Alert Level . | . . . Low Security (%) 100 | 100 100 . Level 1 . | . . . Level 2 . | . . . Level 3 . | . . . Level 4 . | . . . Level 5 . | . . . High Security . | . . . Max Security . | . . . Squads Dispatched 2 | . 2 . Investigation 1 | . 1 . Extermination . | . . . Reinforcement 1 | . 1 . Assault . | . . . Garrison . | . . . Intercept . | . . . Searches Triggered . | . . . Construction Impeded . | . . . Haulers Reinforced . | . . . Active Scanning Responses . | . . . Cargo Convoy Interrupts . | . . . Stealth | -11 -10 -10 --------- Run | Yrd Mat Sub Distress Signals 1 | . 1 . Communications Jammed . | . . . Distress Signals . | . . . Times Spotted 45 | . 14 31 Peak Tracking Total 6 | . 4 6 Tactical Retreats 2 | . . 2 Traps | -11 -10 -10 ------- Run | Yrd Mat Sub Traps Triggered 2 | . 1 1 Indirectly . | . . . Trap Hack Attempts . | . . . Triggered . | . . . Disarmed . | . . . Reprogrammed . | . . . Reused . | . . . Traps Extracted . | . . . Installed . | . . . Triggered . | . . . Machines | -11 -10 -10 ---------- Run | Yrd Mat Sub Machines Disabled . | . . . Max in Single Turn . | . . . Machines Repaired . | . . . Machines Dismantled . | . . . Machines Sabotaged . | . . . Overloaded Fab Kills . | . . . Hacking | -11 -10 -10 --------- Run | Yrd Mat Sub Machines Accessed 3 | . 2 1 Terminals 2 | . 2 . Fabricators . | . . . Repair Stations . | . . . Recycling Units . | . . . Scanalyzers . | . . . Garrison Access . | . . . Total Hacks 7 | . 4 3 Successful 6 | . 3 3 Failed 1 | . 1 . Catastrophic . | . . . Database Lockouts . | . . . Manual 4 | . 4 . Terminals 4 | . 4 . Fabricators . | . . . Repair Stations . | . . . Recycling Units . | . . . Scanalyzers . | . . . Garrison Access . | . . . Terminal Hacks 5 | . 2 3 Record 3 | . . 3 Part Schematic 2 | . 2 . Fabricator Hacks . | . . . Repair Station Hacks . | . . . Recycling Unit Hacks . | . . . Scanalyzer . | . . . Garrison Access Hacks . | . . . Unauthorized Hacks 1 | . 1 . Terminals 1 | . 1 . Botnet 1 | . 1 . Fabricators . | . . . Repair Stations . | . . . Recycling Units . | . . . Scanalyzers . | . . . Garrison Access . | . . . Data Cores Recovered . | . . . Used . | . . . Hacking Detections 1 | . 1 . Full Trace Events 1 | . 1 . Feedback Events 1 | . 1 . Corruption 1 | . 1 . Feedback Blocked . | . . . Robot Schematics Acquired . | . . . Robots Built . | . . . Authchips . | . . . Time . | . . . Total Robot Build Rating . | . . . Part Schematics Acquired 2 | . 2 . Parts Built . | . . . Authchips . | . . . Time . | . . . Total Part Build Rating . | . . . Parts Repaired . | . . . Time . | . . . Parts Recycled . | . . . Recycled Matter . | . . . Retrieved Matter . | . . . Retrieved Components . | . . . Parts Scanalyzed . | . . . Part Schematics Acquired . | . . . Parts Damaged . | . . . Bothacking | -11 -10 -10 ------------ Run | Yrd Mat Sub Used RIF Installer . | . . . Robots Hacked . | . . . Non-combat . | . . . Combat . | . . . Robot Hacks Applied . | . . . Relay Couplers Released . | . . . Fabnet Peak Effective % . | . . . Robots Rewired . | . . . Allies Hacked . | . . . Hacks Repelled . | . . . Allies | -11 -10 -10 -------- Run | Yrd Mat Sub Total Allies . | . . . Largest Group . | . . . Highest-Rated Group . | . . . Highest-Rated Ally . | . . . Total Orders . | . . . Ally Attacks . | . . . Total Damage . | . . . Kills . | . . . Allies Corrupted . | . . . Allies Melted . | . . . Intel | -11 -10 -10 ------- Run | Yrd Mat Sub Robot Analysis Total . | . . . Derelict Logs Recovered 1 | . . 1 Drone Launches . | . . . Drone Recoveries . | . . . Exploration | -11 -10 -10 ------------- Run | Yrd Mat Sub Turns Passed 8178 | 79 944 7155 Spaces Moved 3137 | 45 358 2734 Core 2 | 2 . . Treads 3135 | 43 358 2734 Legs . | . . . Wheels . | . . . Hover . | . . . Flight . | . . . Fastest Speed 50 | 50 160 240 Average Speed 243 | 155 237 245 Slowest Speed 320 | 160 240 320 Overloaded Moves . | . . . Propulsion Burnouts . | . . . Robots Hopped . | . . . Cave-ins Triggered . | . . . Exploration Rate (%) 55 | 5 64 98 Regions Visited 2 Branch Regions 1 Pre-discovered Areas . | . . . Known Exits Taken . | . . . Unknown Exits Taken 2 | 1 1 . Scrap Searched 14 | . . 14 Spaces Dug 19 | . . 19 Terrain Destroyed 23 | . . 23 Melee . | . . . Projectile 23 | . . 23 AOE . | . . . Terrain Rammed . | . . . Walls Destroyed . | . . . Machines Disabled . | . . . Actions | -11 -10 -10 --------- Run | Yrd Mat Sub Total 3396 | 51 412 2933 Wait 58 | . 25 33 Move 3135 | 44 357 2734 Hop . | . . . Pick Up 23 | 1 6 16 Fast Attach 12 | 6 2 4 Attach 7 | . . 7 Detach 1 | . . 1 Swap 2 | . . 2 Drop 5 | . 1 4 Fire 153 | . 21 132 Melee . | . . . Ram . | . . . Kick . | . . . Crush . | . . . Escape Stasis . | . . . Rewire . | . . . Trap . | . . . Miscellaneous . | . . . Route ------- -11/Scrapyard -10/Materials (discovered 5 exits: [*Mat x3] / [*Min] / *Sub) -10/Subcaves (discovered 3 exits: [*Mat x2] / [*Rec]) History --------- Turn | Location | Event 7 | -11/Scrapyard | Discovered new exit (range 15) 80 | -11/Scrapyard | Entered Materials 192 | -10/Materials | Discovered new exit (range 10) 314 | -10/Materials | Build established: Mutant 349 | -10/Materials | Discovered new exit (range 14) 596 | -10/Materials | Discovered new exit (range 11) 767 | -10/Materials | Discovered new exit (range 11) 1016 | -10/Materials | Discovered new exit (range 5) 1024 | -10/Materials | Entered Subcaves 1095 | -10/Subcaves | Shifting Twisted Machinery released Sub. Laser 1369 | -10/Subcaves | Shifting Twisted Machinery released Flamer 1391 | -10/Subcaves | Shifting Twisted Machinery released Mak. Shrapnel Gun 1394 | -10/Subcaves | A swath of the cavern ceiling suddenly collapsed 2377 | -10/Subcaves | Shifting Twisted Machinery released Mak. Kinetic Plating 2377 | -10/Subcaves | Shifting Twisted Machinery released Battle Rifle 2532 | -10/Subcaves | Lost 3 parts (1n2w) 3117 | -10/Subcaves | Discovered new exit (range 7) 3129 | -10/Subcaves | Visited Clippyterm 3136 | -10/Subcaves | Learned Factory stockpile data 3790 | -10/Subcaves | Discovered new exit (range 10) 4187 | -10/Subcaves | Disturbed a concealed Subdweller 4188 | -10/Subcaves | Ambushed by Subdweller buried in earth 4474 | -10/Subcaves | A Subdweller sparked back to life 4474 | -10/Subcaves | A Subdweller sparked back to life 4474 | -10/Subcaves | A Subdweller sparked back to life 4478 | -10/Subcaves | Core integrity fell below 50% 4536 | -10/Subcaves | Found Prototype Processor 5016 | -10/Subcaves | Discovered new exit (range 15) 6220 | -10/Subcaves | Learned location of 1 exit from Materials 8157 | -10/Subcaves | Ambushed by Subdweller buried in earth 8160 | -10/Subcaves | Ambushed by Subdweller buried in earth 8164 | -10/Subcaves | Core integrity fell below 20% 8179 | -10/Subcaves | Destroyed by U6-ZYV(R) with Subdweller Laser Last Messages --------------- 07239_ Triggered Shrapnel Trap. 07239_ An expanding cloud of shrapnel blasts out in all directions. 07239_ Lgt. Treads destroyed. 07247_ System corrupted: FCS attempts to trigger Sub. Machine Gun. 07247_ System corrupted: Sub. Machine Gun misfires. 07482_ System corrupted: Matter fused (-6). 07571_ Slug penetrates Earth. 07769_ System corrupted: Matter fused (-10). 07933_ System corrupted: Matter fused (-7). 08158_ U6-ZYV(R): "ARGHSUB!" 08158_ Sub. Machine Gun destroyed. 08160_ U6-ZYV(R) suffers critical hit (Destroy). 08160_ U6-ZYV(R) knocked back. 08161_ TW-XSP(R): "ARGHSUB!" 08165_ Core Shielding destroyed. 08167_ System corrupted: Component data lost. 08171_ Spk. Treads destroyed. Map ----- +----------------------------------------------------+ | ""??????# #??????????????? | | <#?##### ## ### #??????????????? | | ""??## ######?# #?# #??????????????? | | ### "#?# " ##???# ## #??????????????? | | ???????????# " ##?## ##??????????????? | | ????????????# " ### #??????????????? | | ???????####?# ## # ####??????????????? | | ######## ### """ "" ###?????????????????? | | # " """" " ##??????????????????? | | "" " """ ### #??????????????????? | | """"" " ### #??????????????????? | | """ " " ## ##??????????????????? | | """"" ## ##???????????????????? | | ## "" " # ##???????????????????? | | ## ## " ## ## #???????????????????? | | # & ### #### ## ##??????????????????? | | && #####?#" ##??# "" #??????????????????? | | ####?????####???# """ #??????????????????? | | "##?????????????## " "" ##?????????????????? | | &""###??????????## "" ##????????????????? | | """"##?????????# " "" #????????????????? | | " " #?????????## ##????????????????? | | "# #??????????##### #?????????????????? | | " #####??????????????## #?????????????????? | | " #??????????????????## #?????????????????? | | " ##???????????????????##@ #?????????????????? | | #????????????????????# ##????????????????? | | ##????????????????????## #????????????????? | | ##?????????????????????#;RR #????????????????? | | ??????????????????????# ###????????????????? | | ??????????????????????#% ##??????????????????? | | ??????????????????????# #????????????????????? | | ??????????????????????# ###??????????????????? | | ??????????????????????# # #??????????????????? | | ??????????????????????## ##??????????????????? | | ???????????????????????## ##?????????????????? | | ????????????????????????## ###???????????????? | | ?????????????????????????## #???????????????? | | ??????????????????????????# ##???????????????? | | ??????????????????????????# #???????????????? | | ??????????????????????????# ##???????????????? | | ??????????#####??????????## #???????????????? | | ?????????## # ##?????????# #???????????????? | | ###??????# ! #???####??## ##???????????????? | | ########## "##??## #??## #???????????????? | | ## # ###### #??# #???????????????? | | ## ##!# #### #???????????????? | | ### " # ## #???????????????? | | ### ## & ##???????????????? | | ### #### #????????????????? | +----------------------------------------------------+ Best States ------------- Heat Dissipation 25 Energy Generation 15 Energy Capacity 250 Matter Stores 300 Matter Capacity 300 Sight Range 16 Terrain Scan Density 10 Core Shielding 20 Evasion (%) 40 Recoil Reduction 2 Item Schematics ----------------- Huge Storage Unit | -10/Materials | Hacked Cargo Storage Unit | -10/Materials | Hacked Robot Schematics ------------------ None Fabricated ------------ Nothing Alien Tech Used ----------------- None Achievements -------------- None Challenges ------------ None Game ------ Seed DrainedReinforcedSabre Manual? 0 Play Time 00:23:41 Cumulative 110.6 hours Start 2024.04.19 @ 11:12:37 End 2024.04.19 @ 11:35:19 Sessions 1 Manual Loads 0 Difficulty Rogue Special Mode None Game No. 133 Rogue 133 Adventurer 0 Explorer 0 Win Type - Total 1 Types 1/0/0/0/0/0/0/0/0 Lore% 48 Gallery% 52 Achievement% 49 Wizard Run 0 Options --------- Layout 1 ASCII 0 Keyboard 0 Movement Mouse Keybinds 0 Fullscreen 2 Font 32/Smallcaps Map View 50x40 Zoom Use 0% Tactical HUD 1 Map Filters NONE Filters NONE Steam 1 RUN: ac7177e5-7cb2-4130-a3c0-41d61eedce9d